bitfinex-derivatives/quotes_ETHF0:USTF0_20230104
["timestamp","ask_amount","ask_price","bid_price","bid_amount"]
[1672867840156,1.597,1252.8,1252.7,1.18954559]
[1672867840368,4.6043,1252.8,1252.7,1.18954559]
[1672867843406,4.6043,1252.8,1252.7,3.68954559]
[1672867843617,4.6043,1252.8,1252.7,1.18954559]
[1672867844569,1.597,1252.8,1252.7,1.18954559]
[1672867844772,4.6043,1252.8,1252.7,1.18954559]
[1672867844982,3.0073,1252.8,1252.7,1.18954559]
[1672867848033,4.57616243,1252.9,1252.7,1.18954559]
[1672867848663,3.0073,1252.8,1252.7,1.18954559]
[1672867850452,4.57616243,1252.9,1252.7,1.18954559]
[1672867850765,3.0073,1252.8,1252.7,1.18954559]
[1672867852452,4.57616243,1252.9,1252.7,1.18954559]
[1672867852659,3.0073,1252.8,1252.7,1.18954559]
[1672867853395,3.0073,1252.8,1252.6,8.98388075]
[1672867855287,3.0073,1252.8,1252.6,11.96777707]
[1672867855504,5.99646243,1252.8,1252.6,8.98388075]
[1672867856120,3.0073,1252.8,1252.6,11.96777707]
[1672867856962,5.99646243,1252.8,1252.6,8.98388075]
[1672867857173,5.99646243,1252.8,1252.7,2.38688075]
[1672867857384,5.99646243,1252.8,1252.7,4.88688075]
[1672867857597,2.98916243,1252.8,1252.7,4.88688075]
[1672867857800,5.99646243,1252.8,1252.7,2.38688075]
[1672867863172,5.99646243,1252.8,1252.7,3.80165239]
[1672867863487,2.98916243,1252.8,1252.7,3.80165239]
[1672867863803,5.99646243,1252.8,1252.7,3.80165239]
[1672867864015,2.98916243,1252.8,1252.7,3.80165239]
[1672867865061,5.99646243,1252.8,1252.7,3.80165239]
[1672867865270,5.99646243,1252.8,1252.7,2.38688075]
[1672867865698,5.99646243,1252.8,1252.7,3.80165505]
[1672867867586,5.99646243,1252.8,1252.7,3.80165746]
[1672867867795,5.99646243,1252.8,1252.7,2.38688075]
[1672867868009,5.99646243,1252.8,1252.6,11.96777707]
[1672867868954,2.98916243,1252.8,1252.6,11.96777707]
[1672867869156,3.0073,1252.7,1252.6,11.96777707]
[1672867869367,5.5073,1252.7,1252.6,13.3826076]
[1672867870641,2.5,1252.7,1252.6,13.3826076]
[1672867870839,5.5073,1252.7,1252.6,13.3826076]
[1672867871686,5.5073,1252.7,1252.6,10.39871128]
[1672867872001,8.49646243,1252.7,1252.6,10.39871128]
[1672867872206,5.5073,1252.7,1252.6,10.39871128]
[1672867872525,5.5073,1252.7,1252.6,13.3826076]
[1672867872837,5.5073,1252.7,1252.6,10.39871128]
[1672867873680,5.5073,1252.7,1252.6,13.3826076]
[1672867873895,5.5073,1252.7,1252.6,10.39871128]
[1672867874318,5.5073,1252.7,1252.6,13.3826076]
[1672867874627,5.5073,1252.7,1252.6,10.39871128]
[1672867876623,5.5073,1252.7,1252.6,13.3826076]
[1672867878837,2.5,1252.7,1252.6,13.3826076]
[1672867879046,3.0073,1252.7,1252.6,13.3826076]
[1672867879256,3.0073,1252.7,1252.6,10.99572685]
[1672867880101,3.0073,1252.7,1252.6,13.37433492]
[1672867880510,3.0073,1252.7,1252.6,10.99572685]
[1672867880832,3.0073,1252.7,1252.6,13.37440495]
[1672867881244,3.0073,1252.7,1252.6,10.99572685]
[1672867894819,2.98916243,1252.8,1252.6,10.99572685]
[1672867895029,3.0073,1252.7,1252.6,9.57589632]
[1672867895242,3.0073,1252.7,1252.6,10.99066964]
[1672867895442,2.98916243,1252.8,1252.6,10.99066964]
[1672867895653,3.0073,1252.7,1252.6,9.57589632]
[1672867895863,3.0073,1252.7,1252.6,10.99064763]
[1672867896813,10.09146243,1252.9,1252.6,10.97877422]
[1672867897023,10.09146243,1252.9,1252.8,1.78316703]
[1672867897233,7.1023,1252.9,1252.8,2.97205524]
[1672867900594,4.095,1252.9,1252.8,2.97205524]
[1672867900911,7.1023,1252.9,1252.8,2.97205524]
[1672867904274,4.095,1252.9,1252.8,2.97205524]
[1672867904587,7.1023,1252.9,1252.8,2.97205524]
[1672867907948,10.09439805,1252.9,1252.8,2.97205524]
[1672867908372,10.09440036,1252.9,1252.8,2.97205524]
[1672867909736,7.08710036,1252.9,1252.8,2.97205524]
[1672867909948,10.09440036,1252.9,1252.8,2.97205524]
[1672867910894,7.1023,1252.9,1252.8,1.18888821]
[1672867911209,7.1023,1252.9,1252.8,2.97205524]
[1672867911518,7.1023,1252.9,1252.8,1.18888821]
[1672867912786,7.1023,1252.9,1252.8,2.97205524]
[1672867913731,7.1023,1252.9,1252.8,1.18888821]
[1672867914461,7.1023,1252.9,1252.8,2.97205524]
[1672867914992,5.5073,1252.9,1252.8,2.97205524]
[1672867916142,5.5073,1252.9,1252.8,1.18888821]
[1672867917721,5.5073,1252.9,1252.8,2.97205524]
[1672867921078,5.5073,1252.9,1252.8,1.78316703]
[1672867921494,5.5073,1252.9,1252.8,2.97235649]
[1672867922032,5.5073,1252.9,1252.8,2.9723662]
[1672867922559,5.5073,1252.9,1252.8,1.78316703]
[1672867922876,5.5073,1252.9,1252.8,2.97257751]
[1672867924455,2.5,1252.9,1252.8,2.97257751]
[1672867924654,5.5073,1252.9,1252.8,2.97257751]
[1672867924867,5.5073,1252.9,1252.8,1.18177786]
[1672867925076,10.69359276,1252.9,1252.8,1.18177786]
[1672867933807,7.1043,1252.9,1252.8,1.18177786]
[1672867936012,10.69359276,1252.9,1252.8,1.18177786]
[1672867936435,7.1043,1252.9,1252.8,1.18177786]
[1672867939588,5.5073,1252.9,1252.8,2.96494489]
[1672867942322,5.5073,1252.9,1252.8,1.18177786]
[1672867943906,2.5,1252.9,1252.8,1.18177786]
[1672867944537,5.5073,1252.9,1252.8,1.18177786]
[1672867945062,9.09659276,1252.9,1252.8,1.18177786]
[1672867946317,6.08929276,1252.9,1252.8,1.18177786]
[1672867946634,9.09659276,1252.9,1252.8,1.18177786]
[1672867946851,6.08929276,1252.9,1252.8,1.18177786]
[1672867947058,9.09659276,1252.9,1252.8,1.18177786]
[1672867948102,9.09659276,1252.9,1252.7,3.38016703]
[1672867948528,2.99230578,1252.8,1252.7,3.38016703]
[1672867948845,2.9923009,1252.8,1252.7,3.38016703]
[1672867949255,9.09659276,1252.9,1252.7,3.38016703]
[1672867951667,2.99232619,1252.8,1252.7,3.38016703]
[1672867951889,9.09659276,1252.9,1252.7,3.38016703]
[1672867954619,9.09659276,1252.9,1252.7,1.597]
[1672867955042,10.69359276,1252.9,1252.6,5.75572307]
[1672867955252,5.99922833,1252.7,1252.6,5.75572307]
[1672867955468,5.99922833,1252.7,1252.6,3.97255604]
[1672867955781,5.99922833,1252.7,1252.6,5.7593056]
[1672867956098,5.99922833,1252.7,1252.6,3.97255604]
[1672867956516,3.0073,1252.7,1252.6,5.38742838]
[1672867956830,5.99922833,1252.7,1252.6,3.97255604]
[1672867964712,5.99922833,1252.7,1252.6,5.38743637]
[1672867965032,5.99922833,1252.7,1252.6,5.37543637]
[1672867966819,3.0073,1252.7,1252.6,5.37543637]
[1672867967031,5.99922833,1252.7,1252.6,5.37543637]
[1672867967975,2.99192833,1252.7,1252.6,5.37543637]
[1672867968178,5.99922833,1252.7,1252.6,5.37543637]
[1672867968705,5.99922833,1252.7,1252.6,5.7473088]
[1672867969335,5.99922833,1252.7,1252.6,3.36975276]
[1672867969547,5.99922833,1252.7,1252.6,5.7473088]
[1672867971128,6.2013,1252.7,1252.6,1.78675276]
[1672867971341,6.2013,1252.7,1252.5,4.1643088]
[1672867971542,4.588979,1252.6,1252.5,1.78675276]
[1672867971756,7.088979,1252.6,1252.5,1.78675276]
[1672867974699,7.088979,1252.6,1252.4,4.1643088]
[1672867974903,3.0073,1252.5,1252.4,4.1643088]
[1672867976802,7.088979,1252.6,1252.4,1.78675276]
[1672867977114,3.0073,1252.5,1252.4,1.78675276]
[1672867977638,7.088979,1252.6,1252.4,1.78675276]
[1672867977853,3.0073,1252.5,1252.4,1.78675276]
[1672867978069,7.088979,1252.6,1252.4,1.78675276]
[1672867978273,3.0073,1252.5,1252.4,1.78675276]
[1672867979846,3.0073,1252.5,1252.4,4.1643088]
[1672867980062,3.0073,1252.5,1252.4,2.37755604]
[1672867980905,9.190279,1252.5,1252.4,1.78480544]
[1672867981116,6.1983,1252.5,1252.4,1.78480544]
[1672867981320,9.190279,1252.5,1252.3,4.16236148]
[1672867981526,6.1983,1252.5,1252.4,1.78480544]
[1672867983209,1.5,1252.4,1252.3,4.16236148]
[1672867983627,1.5,1252.4,1252.3,1.78480544]
[1672867984568,4.5073,1252.4,1252.3,1.78480544]
[1672867985001,4.5073,1252.4,1252.3,4.16236148]
[1672867985313,4.5073,1252.4,1252.3,1.78480544]
[1672867986257,3.0073,1252.4,1252.3,1.78480544]
[1672867986470,3.0073,1252.4,1252.3,2.37755604]
[1672867986683,3.0073,1252.4,1252.3,4.87755604]
[1672867986896,3.0073,1252.4,1252.3,6.29266971]
[1672867987735,3.0073,1252.4,1252.3,3.79266971]
[1672867989614,3.0073,1252.4,1252.3,7.87666971]
[1672867989615,3.00489377,1252.4,1252.3,7.87666971]
[1672867989829,3.00489377,1252.4,1252.3,10.84869262]
[1672867990253,3.00489377,1252.4,1252.3,8.47113658]
[1672867990460,3.00489377,1252.4,1252.3,5.97113658]
[1672867991312,3.0073,1252.6,1252.4,0.31445441]
[1672867991516,3.58350682,1253.2,1252.6,8.96120209]
[1672867991731,1.1814,1253.5,1253.1,12.13404051]
[1672867991935,1.1814,1253.5,1253.2,11.259942]
[1672867991936,2.5,1253.4,1253.2,11.259942]
[1672867992458,2.5,1253.4,1253.2,13.63404051]
[1672867992663,2.5,1253.4,1253.3,3.181]
[1672867992878,2.5,1253.5,1253.3,7.461942]
[1672867993089,2.5,1253.5,1253.4,5.68]
[1672867993303,2.5,1253.7,1253.4,5.68]
[1672867993510,2.5,1253.7,1253.6,1.597]
[1672868004767,4.5093,1253.8,1253.6,1.597]
[1672868004970,4.5093,1253.8,1253.7,1.588]
[1672868006334,1.502,1253.8,1253.7,1.588]
[1672868008125,3.099,1253.8,1253.5,1.584]
[1672868008329,3.0073,1253.7,1253.5,1.584]
[1672868012322,3.0073,1253.7,1253.6,1.593]
[1672868015676,3.0073,1253.7,1253.6,1.597]
[1672868016317,4.6043,1253.7,1253.4,1.586]
[1672868016530,3.0073,1253.5,1253.4,1.586]
[1672868019994,3.0073,1253.5,1253.3,1.597]
[1672868020203,3.0073,1253.5,1253.2,1.595]
[1672868020204,4.5943,1253.5,1253.2,1.595]
[1672868020423,3.0073,1253.3,1253.2,1.595]
[1672868020730,3.0073,1253.3,1253.0,4.092]
[1672868025355,3.0073,1253.3,1253.0,5.872942]
[1672868025557,4.6043,1253.5,1253.2,1.597]
[1672868027770,3.0073,1253.4,1253.2,1.597]
[1672868029140,3.0073,1253.4,1253.2,3.377942]
[1672868029549,1.597,1253.5,1253.2,3.377942]
[1672868029766,3.0073,1253.4,1253.2,3.377942]
[1672868031133,3.0073,1253.4,1253.3,1.780942]
[1672868033339,3.0073,1253.4,1253.2,4.15504051]
[1672868033550,3.0073,1253.4,1253.3,1.780942]
[1672868033973,3.0073,1253.4,1253.2,4.15504051]
[1672868035959,3.0073,1253.4,1253.2,1.780942]
[1672868036173,3.0073,1253.4,1253.2,4.15504051]
[1672868036914,3.0073,1253.4,1253.2,1.780942]
[1672868039123,3.0073,1253.3,1253.2,1.780942]
[1672868040278,3.0073,1253.3,1253.1,5.74704051]
[1672868040489,3.0073,1253.3,1253.2,1.780942]
[1672868040695,3.0073,1253.3,1253.2,4.280942]
[1672868040912,3.0073,1253.3,1253.2,2.5]
[1672868041438,3.0073,1253.3,1253.1,7.24704051]
[1672868043013,1.597,1253.5,1253.1,7.24704051]
[1672868043226,3.0073,1253.3,1253.1,7.24704051]
[1672868043426,3.0073,1253.3,1253.2,1.780942]
[1672868043746,3.0073,1253.3,1253.2,2.5]
[1672868044164,3.0073,1253.3,1253.1,4.872942]
[1672868044379,3.0073,1253.3,1253.1,7.24704051]
[1672868044802,3.0073,1253.3,1253.1,4.872942]
[1672868045011,3.0073,1253.3,1253.2,2.78455217]
[1672868045222,3.0073,1253.3,1253.2,4.097]
[1672868045428,3.0073,1253.3,1253.2,2.78455217]
[1672868046265,3.0073,1253.3,1253.2,1.597]
[1672868046477,3.0073,1253.3,1253.2,1.586]
[1672868048792,6.1853,1253.3,1253.0,1.18755217]
[1672868049005,4.5903,1253.1,1253.0,1.18755217]
[1672868049415,4.5903,1253.1,1252.9,2.96849417]
[1672868049626,1.5,1253.0,1252.9,2.96849417]
[1672868050266,4.5073,1253.0,1252.9,2.96849417]
[1672868050475,4.5073,1253.0,1252.9,1.18755217]
[1672868052059,4.5073,1253.0,1252.9,1.780942]
[1672868052266,4.5073,1253.0,1252.9,4.280942]
[1672868052473,4.5073,1253.0,1252.9,1.780942]
[1672868052683,4.5073,1253.0,1252.9,2.96903968]
[1672868054803,4.5073,1253.0,1252.9,1.780942]
[1672868055004,4.5073,1253.0,1252.9,2.96897403]
[1672868055323,4.5073,1253.0,1252.9,1.780942]
[1672868059000,4.5073,1253.0,1252.9,2.96929683]
[1672868059742,4.5073,1253.0,1252.9,1.780942]
[1672868060157,4.5073,1253.0,1252.9,2.9691174]
[1672868060367,4.5073,1253.0,1252.9,1.780942]
[1672868060579,4.5073,1253.0,1252.9,2.96914356]
[1672868063002,3.0073,1253.0,1252.9,2.96914356]
[1672868064688,1.588,1253.1,1252.9,2.96914356]
[1672868064900,3.0073,1253.0,1252.9,1.780942]
[1672868066156,3.0073,1253.1,1252.9,1.780942]
[1672868066359,3.0073,1253.1,1253.0,1.1881148]
[1672868066895,4.093,1253.2,1253.0,1.1881148]
[1672868067205,3.0073,1253.1,1253.0,1.1881148]
[1672868070877,4.093,1253.2,1253.0,1.1881148]
[1672868071094,3.0073,1253.1,1253.0,1.1881148]
[1672868071720,4.093,1253.2,1253.0,1.1881148]
[1672868072039,3.0073,1253.1,1253.0,1.1881148]
[1672868074776,4.093,1253.2,1253.0,1.1881148]
[1672868074978,4.097,1253.2,1253.0,1.1881148]
[1672868075193,3.0073,1253.1,1253.0,1.1881148]
[1672868076888,4.097,1253.2,1253.0,1.1881148]
[1672868077193,3.0073,1253.1,1253.0,1.1881148]
[1672868079613,4.097,1253.2,1253.0,1.1881148]
[1672868079929,3.0073,1253.1,1253.0,1.1881148]
[1672868082765,3.0073,1253.1,1253.0,2.9690568]
[1672868083179,3.0073,1253.1,1253.0,1.1881148]
[1672868085279,3.0073,1253.1,1253.0,2.9690568]
[1672868085915,4.087,1253.2,1253.0,2.9690568]
[1672868086127,3.0073,1253.1,1253.0,2.9690568]
[1672868086966,3.0073,1253.1,1253.0,1.1881148]
[1672868087279,3.0073,1253.1,1253.0,2.9690568]
[1672868090115,3.0073,1253.1,1253.0,1.18124016]
[1672868095160,4.6043,1253.1,1253.0,1.18124016]
[1672868096627,4.6043,1253.1,1252.9,1.780942]
[1672868096849,1.597,1253.0,1252.9,1.780942]
[1672868097053,3.194,1253.0,1252.8,4.15504051]
[1672868097277,4.5973,1252.9,1252.8,4.15504051]
[1672868097577,4.5973,1252.9,1252.8,1.780942]
[1672868097990,4.5973,1252.9,1252.8,4.15504051]
[1672868098616,4.5973,1252.9,1252.8,1.78759181]
[1672868098831,4.5973,1252.9,1252.8,4.16169032]
[1672868099255,4.5973,1252.9,1252.8,1.78759181]
[1672868101578,4.5973,1252.9,1252.8,4.16169032]
[1672868101894,4.5973,1252.9,1252.8,1.78759181]
[1672868104938,4.5973,1252.9,1252.8,4.16169032]
[1672868105782,4.5973,1252.9,1252.8,2.37409851]
[1672868105992,4.5973,1252.9,1252.8,4.16134898]
[1672868106520,4.5973,1252.9,1252.8,2.37409851]
[1672868106730,4.5973,1252.9,1252.8,4.16134215]
[1672868107155,4.5973,1252.9,1252.8,2.37409851]
[1672868107459,1.59,1252.9,1252.8,2.37409851]
[1672868107672,4.5973,1252.9,1252.8,2.37409851]
[1672868113132,1.59,1252.9,1252.8,2.37409851]
[1672868113343,4.5973,1252.9,1252.8,2.37409851]
[1672868113765,3.0073,1253.1,1252.8,6.93572165]
[1672868113977,4.5073,1253.3,1253.0,3.97356033]
[1672868114190,4.5073,1253.3,1253.1,1.78645214]
[1672868115027,4.5073,1253.3,1253.0,3.38345214]
[1672868115028,6.0973,1253.3,1253.0,3.38345214]
[1672868115239,6.0973,1253.3,1253.0,1.78645214]
[1672868115240,3.0073,1253.1,1253.0,1.78645214]
[1672868115448,3.0073,1253.1,1252.9,4.16901247]
[1672868115661,1.597,1253.0,1252.8,4.16901247]
[1672868115870,3.0073,1252.9,1252.8,1.78645214]
[1672868116078,4.6043,1252.9,1252.8,1.78645214]
[1672868116503,7.1043,1252.9,1252.8,1.78645214]
[1672868118500,7.1043,1252.9,1252.7,4.16901247]
[1672868118814,1.597,1252.8,1252.7,4.16901247]
[1672868119649,1.597,1252.8,1252.7,1.78645214]
[1672868120704,4.6043,1252.8,1252.7,1.78645214]
[1672868121336,4.6043,1252.8,1252.7,4.16901247]
[1672868121644,4.6043,1252.8,1252.7,1.78645214]
[1672868124690,3.0073,1252.8,1252.7,4.16901247]
[1672868125428,3.0073,1252.8,1252.7,1.78645214]
[1672868126482,3.0073,1252.8,1252.7,4.16901247]
[1672868127009,3.0073,1252.8,1252.7,2.38256033]
[1672868127532,4.097,1252.9,1252.7,2.38256033]
[1672868127751,3.0073,1252.8,1252.7,4.16943926]
[1672868128060,3.0073,1252.8,1252.7,2.38256033]
[1672868128790,4.097,1252.9,1252.7,2.38256033]
[1672868128995,3.0073,1252.8,1252.7,2.38256033]
[1672868130371,3.0073,1252.8,1252.7,4.1695762]
[1672868130996,3.0073,1252.8,1252.7,2.38256033]
[1672868131207,3.0073,1252.8,1252.7,4.1696161]
[1672868132057,3.0073,1252.8,1252.7,2.38256033]
[1672868132781,4.097,1252.9,1252.7,2.38256033]
[1672868132997,4.097,1252.9,1252.8,1.78697245]
[1672868133203,7.1043,1252.9,1252.8,1.78697245]
[1672868133415,7.1043,1252.9,1252.7,4.16953278]
[1672868133941,7.1043,1252.9,1252.8,1.78697245]
[1672868134151,7.1043,1252.9,1252.7,2.38256033]
[1672868134152,7.1043,1252.9,1252.7,4.16953278]
[1672868134351,7.1043,1252.9,1252.8,1.78697245]
[1672868134566,7.1043,1252.9,1252.7,4.16953278]
[1672868134880,7.1043,1252.9,1252.8,1.78697245]
[1672868135089,7.1043,1252.9,1252.7,2.38256033]
[1672868135090,7.1043,1252.9,1252.7,4.16953278]
[1672868135310,7.1043,1252.9,1252.8,1.78697245]
[1672868138251,4.097,1252.9,1252.8,1.78697245]
[1672868138567,7.1043,1252.9,1252.8,1.78697245]
[1672868139095,4.097,1252.9,1252.8,1.78697245]
[1672868139408,7.1043,1252.9,1252.8,1.78697245]
[1672868139824,4.097,1252.9,1252.8,1.78697245]
[1672868140036,7.1043,1252.9,1252.8,1.78697245]
[1672868143717,7.1043,1252.9,1252.7,4.16953278]
[1672868145820,4.097,1252.9,1252.7,4.16953278]
[1672868146028,3.0073,1252.8,1252.7,4.16953278]
[1672868148124,4.097,1252.9,1252.7,4.16953278]
[1672868148338,3.0073,1252.8,1252.7,4.16953278]
[1672868148548,4.097,1252.9,1252.7,4.16953278]
[1672868148758,3.0073,1252.8,1252.7,4.16953278]
[1672868148965,3.0073,1252.8,1252.7,2.38256033]
[1672868149927,3.0073,1252.8,1252.7,4.16889582]
[1672868150230,3.0073,1252.8,1252.7,1.78633549]
[1672868150439,4.5943,1252.8,1252.7,1.78633549]
[1672868150650,4.5943,1252.8,1252.6,4.16889582]
[1672868151387,4.5943,1252.8,1252.7,1.78633549]
[1672868156021,4.5943,1252.8,1252.7,1.78100627]
[1672868166110,1.587,1252.8,1252.7,1.78100627]
[1672868166420,4.5943,1252.8,1252.7,1.78100627]
[1672868166637,4.5943,1252.8,1252.7,4.1635666]
[1672868166840,4.5943,1252.8,1252.7,2.38256033]
[1672868167683,3.0073,1252.8,1252.7,2.38256033]
[1672868167892,3.0073,1252.8,1252.7,6.29740053]
[1672868168209,3.0073,1252.8,1252.7,3.79740053]
[1672868170096,3.0073,1252.8,1252.7,2.38256033]
[1672868170835,3.0073,1252.8,1252.7,3.79738731]
[1672868171258,3.0073,1252.8,1252.7,5.39438731]
[1672868174301,3.0073,1252.8,1252.7,3.97956033]
[1672868174723,3.0073,1252.8,1252.7,5.39439023]
[1672868175035,2.5,1252.9,1252.7,3.97956033]
[1672868175247,3.0073,1252.8,1252.7,3.97956033]
[1672868176305,3.0073,1252.8,1252.7,5.39439265]
[1672868177031,3.0073,1252.8,1252.7,3.97956033]
[1672868180188,2.5,1252.9,1252.7,3.97956033]
[1672868180405,3.0073,1252.8,1252.7,3.97956033]
[1672868180928,2.5,1252.9,1252.7,3.97956033]
[1672868181241,3.0073,1252.8,1252.7,3.97956033]
[1672868181962,3.0073,1252.8,1252.7,5.39439052]
[1672868182814,2.5,1252.9,1252.7,5.39439052]
[1672868183133,3.0073,1252.8,1252.7,3.97956033]
[1672868183342,3.0073,1252.8,1252.7,5.39439256]
[1672868183755,3.0073,1252.8,1252.7,3.97956033]
[1672868185127,3.0073,1252.8,1252.7,2.38256033]
[1672868189542,4.09,1252.9,1252.7,2.38256033]
[1672868189756,3.0073,1252.8,1252.7,2.38256033]
[1672868191332,3.0073,1252.8,1252.6,6.94418347]
[1672868191533,3.0073,1252.8,1252.7,2.38256033]
[1672868191953,3.0073,1252.8,1252.6,6.94418347]
[1672868192381,3.0073,1252.8,1252.7,2.38256033]
[1672868193644,3.0073,1252.8,1252.6,6.94418347]
[1672868195430,4.09,1252.9,1252.6,6.94418347]
[1672868195630,3.0073,1252.7,1252.6,6.94418347]
[1672868195840,3.0073,1252.7,1252.6,8.35909239]
[1672868196056,4.09,1252.9,1252.6,8.35909239]
[1672868196375,3.0073,1252.7,1252.6,6.94418347]
[1672868196687,3.0073,1252.7,1252.6,8.35909495]
[1672868198157,3.0073,1252.7,1252.6,5.39147181]
[1672868198368,3.0073,1252.7,1252.6,8.35909495]
[1672868198580,3.0073,1252.7,1252.6,5.39147181]
[1672868198789,3.0073,1252.7,1252.6,8.35909495]
[1672868199316,4.09,1252.9,1252.6,8.35909495]
[1672868199524,3.0073,1252.7,1252.6,3.97656033]
[1672868199736,3.0073,1252.7,1252.6,5.39147789]
[1672868200156,4.09,1252.9,1252.6,5.39147789]
[1672868200366,3.0073,1252.7,1252.6,3.97656033]
[1672868200577,3.0073,1252.7,1252.6,8.35910276]
[1672868200788,3.0073,1252.7,1252.6,5.39147962]
[1672868202568,4.09,1252.9,1252.6,5.39147962]
[1672868202783,3.0073,1252.7,1252.6,3.97656033]
[1672868203103,3.0073,1252.7,1252.6,5.39148264]
[1672868203621,4.09,1252.9,1252.6,5.39148264]
[1672868203837,3.0073,1252.7,1252.6,3.97656033]
[1672868204047,3.0073,1252.7,1252.6,5.39148263]
[1672868204993,3.0073,1252.7,1252.6,3.79748263]
[1672868213095,1.583,1252.8,1252.6,3.79748263]
[1672868213303,3.0073,1252.7,1252.6,3.79748263]
[1672868213725,1.583,1252.8,1252.6,3.79748263]
[1672868213938,3.0073,1252.7,1252.6,3.79748263]
[1672868219399,3.0073,1252.7,1252.6,6.76510577]
[1672868220030,3.0073,1252.7,1252.6,4.38254544]
[1672868221816,3.0073,1252.7,1252.6,5.35323174]
[1672868222029,3.0073,1252.7,1252.6,6.76815404]
[1672868223698,1.583,1252.8,1252.6,6.76815404]
[1672868223908,3.0073,1252.7,1252.6,6.76815404]
[1672868224440,3.0073,1252.7,1252.6,4.38254544]
[1672868224643,3.0073,1252.7,1252.6,5.35368298]
[1672868224849,3.0073,1252.7,1252.6,6.76859533]
[1672868225272,1.583,1252.8,1252.6,6.76859533]
[1672868225485,1.583,1252.8,1252.7,1.78955723]
[1672868225806,4.5903,1252.8,1252.7,4.17560712]
[1672868226643,4.5903,1252.8,1252.7,1.78955723]
[1672868227057,1.583,1252.8,1252.7,1.78955723]
[1672868227272,4.5903,1252.8,1252.7,1.78955723]
[1672868229896,1.583,1252.8,1252.7,1.78955723]
[1672868230105,4.5903,1252.8,1252.7,1.78955723]
[1672868233153,4.5903,1252.8,1252.7,1.19323584]
[1672868234629,4.5903,1252.8,1252.6,5.35367303]
[1672868234841,4.5903,1252.8,1252.6,6.76859225]
[1672868235255,4.5903,1252.8,1252.6,3.80096911]
[1672868235466,4.5903,1252.8,1252.6,6.76859225]
[1672868235885,1.583,1252.8,1252.6,6.76859225]
[1672868236101,3.0073,1252.7,1252.6,6.76859225]
[1672868236841,3.0073,1252.7,1252.6,4.38254236]
[1672868237153,3.0073,1252.7,1252.6,2.96762314]
[1672868237352,3.0073,1252.7,1252.6,6.88254236]
[1672868239151,3.0073,1252.7,1252.6,4.38254236]
[1672868239466,4.5903,1252.8,1252.6,4.38254236]
[1672868239667,4.5903,1252.8,1252.7,2.38474274]
[1672868243239,4.5903,1252.8,1252.6,5.35236588]
[1672868243451,4.5903,1252.8,1252.6,6.76725071]
[1672868244615,3.0073,1252.7,1252.6,6.76725071]
[1672868245030,3.0073,1252.7,1252.6,8.36425071]
[1672868245349,3.0073,1252.7,1252.6,5.97950797]
[1672868245670,3.0073,1252.8,1252.6,5.97950797]
[1672868245882,3.0073,1252.8,1252.7,2.38485953]
[1672868247778,4.097,1252.9,1252.7,2.38485953]
[1672868247975,3.0073,1252.8,1252.7,2.38485953]
[1672868248607,4.097,1252.9,1252.7,2.38485953]
[1672868248816,3.0073,1252.8,1252.7,2.38485953]
[1672868255245,4.087,1252.9,1252.7,2.38485953]
[1672868255451,4.087,1252.9,1252.8,1.19222021]
[1672868255673,7.0943,1252.9,1252.8,1.19222021]
[1672868260079,7.1043,1252.9,1252.7,1.19222021]
[1672868260289,1.597,1252.8,1252.7,1.19222021]
[1672868263447,4.6043,1252.8,1252.7,1.19222021]
[1672868264077,4.6043,1252.8,1252.6,3.79981531]
[1672868264917,4.6043,1252.8,1252.7,1.19241023]
[1672868268791,6.1943,1252.8,1252.7,1.19241023]
[1672868277725,3.187,1252.8,1252.7,1.19241023]
[1672868277933,6.1943,1252.8,1252.7,1.19241023]
[1672868293080,6.1943,1252.8,1252.7,2.98039638]
[1672868293393,6.1943,1252.8,1252.6,2.98039638]
[1672868293711,3.097,1252.7,1252.6,0.03741023]
[1672868293920,3.097,1252.7,1252.4,4.17284568]
[1672868293921,1.597,1252.6,1252.4,4.17284568]
[1672868294131,4.6043,1252.5,1252.4,1.78798615]
[1672868294546,7.1043,1252.5,1252.4,1.78798615]
[1672868296133,4.097,1252.5,1252.4,1.78798615]
[1672868296338,8.6933,1252.5,1252.3,4.17284568]
[1672868296650,8.6933,1252.5,1252.3,1.78798615]
[1672868296651,1.587,1252.4,1252.3,1.78798615]
[1672868296871,3.184,1252.4,1252.2,1.78798615]
[1672868297065,6.1783,1252.3,1252.2,1.78798615]
[1672868298131,6.1783,1252.3,1252.1,1.78798615]
[1672868298343,4.097,1252.2,1252.1,1.78798615]
[1672868301065,7.1043,1252.2,1252.1,1.78798615]
[1672868302220,7.1043,1252.2,1252.0,1.78798615]
[1672868303378,1.583,1252.1,1252.0,1.78798615]
[1672868303585,1.583,1252.1,1251.9,1.78798615]
[1672868303586,4.773,1252.1,1251.9,1.78798615]
[1672868303900,6.1943,1252.0,1251.8,1.78798615]
[1672868304115,1.583,1251.9,1251.8,1.78798615]
[1672868304320,3.083,1251.9,1251.7,1.78798615]
[1672868305706,3.083,1251.9,1251.7,4.17284568]
[1672868306013,3.083,1251.9,1251.7,1.78798615]
[1672868307386,3.097,1251.9,1251.7,1.78798615]
[1672868307797,3.097,1251.9,1251.7,4.17284568]
[1672868308123,3.097,1251.9,1251.7,1.78798615]
[1672868308433,3.097,1251.9,1251.7,4.79528615]
[1672868308644,3.097,1251.9,1251.8,1.78798615]
[1672868308845,3.097,1251.9,1251.8,2.5]
[1672868309272,3.097,1251.9,1251.7,7.29528615]
[1672868309684,3.097,1251.9,1251.6,5.76984568]
[1672868309899,3.097,1251.9,1251.6,3.38498615]
[1672868310316,3.097,1251.9,1251.6,5.76984568]
[1672868310845,3.097,1251.9,1251.6,3.38498615]
[1672868311583,6.1043,1251.9,1251.6,3.38498615]
[1672868311798,6.1043,1251.9,1251.6,5.76984568]
[1672868312320,6.1043,1251.9,1251.8,2.5]
[1672868312534,3.097,1251.9,1251.8,2.5]
[1672868313167,3.097,1251.9,1251.7,7.29528615]
[1672868316000,1.597,1251.9,1251.7,7.29528615]
[1672868316217,3.0073,1252.1,1251.9,0.31457863]
[1672868316428,3.0073,1252.1,1251.9,2.81457863]